fUSD/lending_fUSD_20250426
["ID","MTS","AMOUNT","RATE_DAILY","PERIOD"]
[359096209,1745705446623,-500.0,0.00019799,2]
[359096210,1745705446633,-151.0,0.00019799,2]
[359096211,1745705446643,-151.0,0.00019799,2]
[359096212,1745705446653,-549.979583,0.00019799,2]
[359096213,1745705446663,-549.979583,0.00019799,2]
[359096214,1745705446673,-250.46,0.00019799,2]
[359096215,1745705446683,-231.528733,0.00019799,2]
[359096216,1745705446692,-231.528733,0.00019799,2]
[359096218,1745705446702,-500.0,0.00019799,2]
[359096220,1745705446712,-574.4477874,0.00019799,2]
[359096222,1745705446722,-796.39,0.00019799,2]
[359096223,1745705446732,-588.0,0.000198,2]
[359096226,1745705446742,-153031.88953839,0.000198,2]
[359096229,1745705446764,-1437.59594108,0.000198,2]
[359096235,1745705446816,-500.0,0.00019781,2]
[359096237,1745705446826,-500.0,0.000198,2]
[359096291,1745705447354,-400.0,0.00019781,2]
[359096293,1745705447364,-8705.5691154,0.000198,2]
[359096307,1745705447495,-3976.2,0.000198,2]
[359096310,1745705447516,-945.7598581,0.000198,2]
[359096377,1745705448187,-405.06,0.00019781,2]
[359096379,1745705448196,-612.88883562,0.000198,2]
[359096381,1745705448208,-105413.72451096,0.000198,2]
[359096383,1745705448219,-2403.61291924,0.000198,2]
[359096385,1745705448229,-154.73026973,0.000198,2]
[359096387,1745705448238,-500.0,0.000198,2]
[359096389,1745705448248,-150.0,0.000198,2]
[359096391,1745705448257,-150.0,0.000198,2]
[359096393,1745705448267,-154.552934,0.000198,2]
[359096395,1745705448277,-150.0,0.000198,2]
[359096396,1745705448286,-151.0,0.000198,2]
[359096397,1745705448295,-288.602563,0.000198,2]
[359096398,1745705448304,-288.602563,0.000198,2]
[359096399,1745705448314,-151.0,0.000198,2]
[359096400,1745705448323,-151.0,0.000198,2]
[359096401,1745705448333,-151.385072,0.000198,2]
[359096402,1745705448342,-151.0,0.000198,2]
[359096403,1745705448352,-151.0,0.000198,2]
[359096404,1745705448361,-151.0,0.000198,2]
[359096405,1745705448371,-208.604727,0.000198,2]
[359096406,1745705448380,-168.207023,0.000198,2]
[359096407,1745705448390,-168.207023,0.000198,2]
[359096408,1745705448402,-151.0,0.000198,2]
[359096409,1745705448412,-151.0,0.000198,2]
[359096410,1745705448421,-549.979583,0.000198,2]
[359096411,1745705448430,-549.979583,0.000198,2]
[359096412,1745705448441,-151.0,0.000198,2]
[359096413,1745705448451,-179.4574,0.000198,2]
[359096414,1745705448460,-231.528733,0.000198,2]
[359096415,1745705448469,-231.528733,0.000198,2]
[359096416,1745705448481,-151.0,0.000198,2]
[359096455,1745705448853,-153.419571,0.000198,2]
[359096457,1745705448865,-151.0,0.000198,2]
[359096459,1745705448875,-151.0,0.000198,2]
[359096461,1745705448885,-151.0,0.000198,2]
[359096463,1745705448895,-151.0,0.000198,2]
[359096465,1745705448904,-151.0,0.000198,2]
[359096467,1745705448914,-151.0,0.000198,2]
[359096469,1745705448924,-152.817562,0.000198,2]
[359096471,1745705448933,-151.0,0.000198,2]
[359096473,1745705448944,-151.0,0.000198,2]
[359096475,1745705448953,-291.51927,0.000198,2]
[359096477,1745705448963,-358.695244,0.000198,2]
[359096479,1745705448973,-358.695244,0.000198,2]
[359096481,1745705448983,-158.839071,0.000198,2]
[359096483,1745705448992,-151.0,0.000198,2]
[359096485,1745705449002,-151.0,0.000198,2]
[359096487,1745705449012,-151.0,0.000198,2]
[359096489,1745705449021,-151.0,0.000198,2]
[359096491,1745705449031,-151.0,0.000198,2]
[359096493,1745705449040,-151.0,0.000198,2]
[359096495,1745705449051,-151.0,0.000198,2]
[359096497,1745705449060,-151.0,0.000198,2]
[359096499,1745705449069,-471.545021,0.000198,2]
[359096501,1745705449079,-258.871286,0.000198,2]
[359096503,1745705449089,-471.545021,0.000198,2]
[359096505,1745705449098,-258.871286,0.000198,2]
[359096507,1745705449108,-151.0,0.000198,2]
[359096509,1745705449118,-151.0,0.000198,2]
[359096510,1745705449127,-151.0,0.000198,2]
[359096512,1745705449137,-151.0,0.000198,2]
[359096514,1745705449148,-151.0,0.000198,2]
[359096516,1745705449158,-151.0,0.000198,2]
[359096519,1745705449168,-161.111419,0.000198,2]
[359096521,1745705449179,-167.261683,0.000198,2]
[359096523,1745705449189,-919.214809,0.000198,2]
[359096525,1745705449198,-919.214809,0.000198,2]
[359096527,1745705449208,-208.374888,0.000198,2]
[359096529,1745705449218,-151.0,0.000198,2]
[359096531,1745705449228,-151.0,0.000198,2]
[359096533,1745705449238,-151.0,0.000198,2]
[359096535,1745705449247,-151.0,0.000198,2]
[359096537,1745705449257,-1217.16841226,0.00019803,2]
[359096539,1745705449267,-767.84074512,0.00019803,2]
[359096541,1745705449277,-150.0,0.00019808,2]
[359096543,1745705449287,-500.0,0.00019808,2]
[359096544,1745705449297,-150.0,0.00019808,2]
[359096546,1745705449307,-150.0,0.00019808,2]
[359096548,1745705449317,-200.0,0.00019808,2]
[359096550,1745705449326,-500.0,0.00019808,2]
[359096552,1745705449336,-150.0,0.00019808,2]
[359096554,1745705449347,-1287.0,0.00019814,2]
[359096556,1745705449356,-796.0,0.00019814,2]
[359096558,1745705449366,-911.0,0.00019814,2]
[359096560,1745705449376,-579.0,0.00019814,2]
[359096562,1745705449385,-2063.0,0.00019814,2]
[359096564,1745705449395,-548.0,0.00019814,2]
[359096566,1745705449408,-1446.0,0.00019814,2]
[359096568,1745705449417,-1217.16841226,0.00019827,2]
[359096570,1745705449427,-201.859,0.00019827,2]
[359096572,1745705449438,-257.141,0.00019827,2]
[359096574,1745705449448,-767.84074512,0.00019827,2]
[359096576,1745705449458,-6193.0,0.00019827,2]
[359096578,1745705449468,-877.0,0.00019827,2]
[359096580,1745705449477,-1822.0,0.00019827,2]
[359096582,1745705449488,-3991.0,0.00019827,2]
[359096584,1745705449498,-872.0,0.00019827,2]
[359096586,1745705449508,-500.0,0.00019827,2]
[359096588,1745705449518,-200.0,0.00019827,2]
[359096590,1745705449529,-200.0,0.00019827,2]
[359096592,1745705449539,-150.0,0.00019836,2]
[359096594,1745705449549,-500.0,0.00019836,2]
[359096596,1745705449558,-150.0,0.00019836,2]
[359096598,1745705449568,-200.0,0.00019836,2]
[359096600,1745705449578,-463.0,0.00019836,2]
[359096602,1745705449588,-150.0,0.00019836,2]
[359096604,1745705449597,-838.81458859,0.0001984,2]
[359096606,1745705449607,-1217.16841226,0.00019851,2]
[359096608,1745705449617,-767.84074512,0.00019851,2]
[359096610,1745705449628,-350.0,0.00019855,2]
[359096612,1745705449638,-150.0,0.00019863,2]
[359096614,1745705449648,-500.0,0.00019863,2]
[359096616,1745705449658,-250.0,0.00019863,2]
[359096618,1745705449669,-150.0,0.00019863,2]
[359096621,1745705449679,-1217.16841226,0.00019876,2]
[359096623,1745705449689,-767.84074512,0.00019876,2]
[359096625,1745705449700,-3148.88397453,0.00019883,2]
[359096627,1745705449710,-169.25116851,0.00019891,2]
[359096629,1745705449720,-500.0,0.00019891,2]
[359096631,1745705449729,-250.0,0.00019891,2]
[359096633,1745705449739,-150.0,0.000199,2]
[359096634,1745705449748,-450.63,0.000199,2]
[359096635,1745705449757,-161.91,0.000199,2]
[359096637,1745705449768,-450.63,0.000199,2]
[359096638,1745705449777,-1151.69,0.000199,2]
[359096640,1745705449788,-150.0,0.000199,2]
[359096642,1745705449798,-150.0,0.000199,2]
[359096643,1745705449808,-150.0,0.000199,2]
[359096645,1745705449818,-799.84,0.000199,2]
[359096646,1745705449827,-455.14,0.000199,2]
[359096648,1745705449837,-161.91,0.000199,2]
[359096650,1745705449846,-1151.69,0.000199,2]
[359096652,1745705449857,-161.91,0.000199,2]
[359096654,1745705449867,-1151.69,0.000199,2]
[359096656,1745705449876,-450.63,0.000199,2]
[359096658,1745705449886,-161.91,0.000199,2]
[359096660,1745705449896,-435.69,0.000199,2]
[359096662,1745705449905,-455.14,0.000199,2]
[359096664,1745705449914,-150.0,0.000199,2]
[359096666,1745705449924,-321.97,0.000199,2]
[359096668,1745705449934,-351.4,0.000199,2]
[359096670,1745705449944,-1614.92,0.000199,2]
[359096672,1745705449954,-161.91,0.000199,2]
[359096674,1745705449963,-901.26,0.000199,2]
[359096676,1745705449972,-351.4,0.000199,2]
[359096678,1745705449982,-300.0,0.000199,2]
[359096680,1745705449992,-150.0,0.000199,2]
[359096682,1745705450001,-1151.69,0.000199,2]
[359096684,1745705450011,-161.91,0.000199,2]
[359096686,1745705450020,-150.0,0.000199,2]
[359096688,1745705450029,-351.4,0.000199,2]
[359096690,1745705450039,-909.35,0.000199,2]
[359096692,1745705450048,-793.06,0.000199,2]
[359096694,1745705450058,-450.63,0.000199,2]
[359096696,1745705450067,-1151.69,0.000199,2]
[359096698,1745705450076,-161.91,0.000199,2]
[359096700,1745705450086,-351.4,0.000199,2]
[359096702,1745705450095,-455.14,0.000199,2]
[359096704,1745705450104,-150.0,0.000199,2]
[359096706,1745705450115,-450.63,0.000199,2]
[359096708,1745705450124,-1151.69,0.000199,2]
[359096710,1745705450134,-161.91,0.000199,2]
[359096712,1745705450143,-351.4,0.000199,2]
[359096714,1745705450153,-150.0,0.000199,2]
[359096716,1745705450164,-338.25,0.000199,2]
[359096718,1745705450174,-161.91,0.000199,2]
[359096720,1745705450183,-1151.69,0.000199,2]
[359096722,1745705450193,-351.4,0.000199,2]
[359096724,1745705450202,-450.63,0.000199,2]
[359096726,1745705450212,-150.0,0.000199,2]
[359096728,1745705450222,-450.63,0.000199,2]
[359096730,1745705450232,-1151.69,0.000199,2]
[359096732,1745705450242,-161.91,0.000199,2]
[359096734,1745705450251,-351.4,0.000199,2]
[359096736,1745705450261,-150.0,0.000199,2]
[359096738,1745705450271,-455.14,0.000199,2]
[359096740,1745705450281,-1599.68,0.000199,2]
[359096742,1745705450291,-150.0,0.000199,2]
[359096744,1745705450300,-351.4,0.000199,2]
[359096746,1745705450310,-1151.69,0.000199,2]
[359096748,1745705450320,-161.91,0.000199,2]
[359096750,1745705450329,-150.0,0.000199,2]
[359096752,1745705450339,-450.63,0.000199,2]
[359096754,1745705450348,-351.4,0.000199,2]
[359096756,1745705450358,-455.14,0.000199,2]
[359096758,1745705450367,-1151.69,0.000199,2]
[359096760,1745705450377,-450.63,0.000199,2]
[359096762,1745705450386,-161.91,0.000199,2]
[359096764,1745705450399,-455.14,0.000199,2]
[359096766,1745705450408,-799.84,0.000199,2]
[359096768,1745705450418,-351.18,0.000199,2]
[359096770,1745705450428,-150.0,0.000199,2]
[359096772,1745705450437,-300.0,0.000199,2]
[359096774,1745705450447,-450.63,0.000199,2]
[359096776,1745705450458,-1151.69,0.000199,2]
[359096778,1745705450468,-161.91,0.000199,2]
[359096780,1745705450479,-351.4,0.000199,2]
[359096782,1745705450489,-455.14,0.000199,2]
[359096784,1745705450498,-296.16,0.000199,2]
[359096786,1745705450508,-450.63,0.000199,2]
[359096788,1745705450517,-799.84,0.000199,2]
[359096790,1745705450528,-910.28,0.000199,2]
[359096793,1745705450537,-351.4,0.000199,2]
[359096795,1745705450547,-161.91,0.000199,2]
[359096797,1745705450556,-244.69,0.000199,2]
[359096799,1745705450566,-429.48,0.000199,2]
[359096801,1745705450576,-351.4,0.000199,2]
[359096803,1745705450585,-455.14,0.000199,2]
[359096805,1745705450595,-799.84,0.000199,2]
[359096806,1745705450604,-455.14,0.000199,2]
[359096809,1745705450615,-351.4,0.000199,2]
[359096810,1745705450624,-351.4,0.000199,2]
[359096813,1745705450634,-450.63,0.000199,2]
[359096815,1745705450644,-799.84,0.000199,2]
[359096816,1745705450654,-351.4,0.000199,2]
[359096818,1745705450664,-1217.16841226,0.000199,2]
[359096820,1745705450676,-1151.69,0.000199,2]
[359096822,1745705450685,-323.5,0.000199,2]
[359096824,1745705450695,-150.0,0.000199,2]
[359096826,1745705450705,-351.4,0.000199,2]
[359096828,1745705450715,-1151.69,0.000199,2]
[359096830,1745705450724,-150.0,0.000199,2]
[359096832,1745705450733,-868.22,0.000199,2]
[359096834,1745705450743,-152.74,0.000199,2]
[359096836,1745705450752,-799.84,0.000199,2]
[359096838,1745705450761,-150.0,0.000199,2]
[359096840,1745705450771,-351.4,0.000199,2]
[359096842,1745705450782,-161.91,0.000199,2]
[359096844,1745705450791,-150.0,0.000199,2]
[359096846,1745705450802,-150.0,0.000199,2]
[359096848,1745705450811,-161.91,0.000199,2]
[359096850,1745705450821,-510.38,0.000199,2]
[359096852,1745705450830,-455.14,0.000199,2]
[359096854,1745705450840,-1151.69,0.000199,2]
[359096856,1745705450850,-450.63,0.000199,2]
[359096858,1745705450861,-150.0,0.000199,2]
[359096860,1745705450871,-150.0,0.000199,2]
[359096862,1745705450882,-161.91,0.000199,2]
[359096864,1745705450892,-799.84,0.000199,2]
[359096866,1745705450902,-150.0,0.000199,2]
[359096868,1745705450911,-150.0,0.000199,2]
[359096870,1745705450921,-150.0,0.000199,2]
[359096872,1745705450931,-455.14,0.000199,2]
[359096874,1745705450941,-161.91,0.000199,2]
[359096876,1745705450950,-455.14,0.000199,2]
[359096878,1745705450959,-1151.69,0.000199,2]
[359096880,1745705450969,-150.0,0.000199,2]
[359096882,1745705450978,-450.63,0.000199,2]
[359096884,1745705450988,-161.91,0.000199,2]
[359096886,1745705450997,-150.0,0.000199,2]
[359096888,1745705451007,-455.14,0.000199,2]
[359096890,1745705451016,-150.0,0.000199,2]
[359096892,1745705451025,-150.0,0.000199,2]
[359096894,1745705451034,-799.84,0.000199,2]
[359096897,1745705451049,-150.0,0.000199,2]
[359096899,1745705451058,-2280.44032539,0.000199,2]
[359096901,1745705451070,-161.91,0.000199,2]
[359096903,1745705451080,-455.14,0.000199,2]
[359096905,1745705451090,-150.0,0.000199,2]
[359096907,1745705451100,-1151.69,0.000199,2]
[359096909,1745705451111,-150.0,0.000199,2]
[359096911,1745705451121,-455.14,0.000199,2]
[359096913,1745705451131,-450.63,0.000199,2]
[359096915,1745705451141,-150.0,0.000199,2]
[359096917,1745705451151,-150.0,0.000199,2]
[359096919,1745705451161,-799.84,0.000199,2]
[359096921,1745705451171,-161.91,0.000199,2]
[359096923,1745705451180,-150.0,0.000199,2]
[359096925,1745705451190,-2774.72487842,0.000199,2]
[359096927,1745705451200,-767.84074512,0.000199,2]
[359096929,1745705451209,-500.0,0.00019918,2]
[359096931,1745705451219,-150.0,0.00019924,2]
[359096933,1745705451228,-166.223,0.00019924,2]
[359096935,1745705451238,-190.002,0.00019924,2]
[359096937,1745705451248,-249.813,0.00019924,2]
[359096939,1745705451257,-155.315,0.00019924,2]
[359096941,1745705451266,-152.676,0.00019924,2]
[359096943,1745705451276,-253.434,0.00019925,2]
[359096944,1745705451285,-245.67,0.00019925,2]
[359096945,1745705451295,-182.428,0.00019925,2]
[359096946,1745705451305,-172.669,0.00019925,2]
[359096947,1745705451314,-258.956,0.00019925,2]
[359096948,1745705451324,-920.0,0.00019925,2]
[359096949,1745705451334,-1336.0,0.00019925,2]
[359096950,1745705451344,-500.0,0.00019945,2]
[359096951,1745705451355,-614.739318,0.0001997,2]
[359096952,1745705451366,-599.395326,0.0001997,2]
[359096953,1745705451376,-614.739318,0.00019971,2]
[359096954,1745705451386,-599.395326,0.00019971,2]
[359096955,1745705451399,-500.0,0.00019973,2]
[359096956,1745705451410,-500.0,0.00019973,2]
[359096957,1745705451421,-500.0,0.00019973,2]
[359096958,1745705451431,-500.0,0.00019973,2]
[359096959,1745705451443,-500.0,0.00019973,2]
[359096960,1745705451453,-218.67076286,0.00019973,2]
[359096961,1745705451464,-500.0,0.00019973,2]
[359096962,1745705451474,-500.0,0.00019973,2]
[359096963,1745705451484,-500.0,0.00019973,2]
[359096964,1745705451499,-500.0,0.00019973,2]
[359096965,1745705451510,-558.66003385,0.00019973,2]
[359096966,1745705451520,-500.0,0.00019973,2]
[359096967,1745705451531,-377.35392646,0.00019976,2]
[359096968,1745705451542,-300.0,0.00019979,2]
[359096969,1745705451552,-730.12,0.00019979,2]
[359096970,1745705451562,-730.12,0.00019979,2]
[359096971,1745705451572,-730.12,0.00019979,2]
[359096972,1745705451582,-582.75906336,0.00019979,2]
[359096973,1745705451592,-500.0,0.00019979,2]
[359096974,1745705451603,-500.0,0.00019979,2]
[359096975,1745705451613,-500.0,0.00019979,2]
[359096976,1745705451623,-500.0,0.00019979,2]
[359096977,1745705451634,-500.0,0.00019979,2]
[359096978,1745705451644,-300.0,0.00019979,2]
[359096979,1745705451654,-796.39,0.00019979,2]
[359096980,1745705451665,-796.39,0.00019979,2]
[359096981,1745705451676,-796.39,0.00019979,2]
[359096982,1745705451688,-63845.43733905,0.0001998,2]
[359096983,1745705452170,-2098.86,0.0001978,2]
[359096984,1745705452182,-500.0,0.00019781,2]
[359096985,1745705452196,-400.0,0.00019781,2]
[359096986,1745705452207,-400.0,0.00019781,2]
[359096987,1745705452217,-849.14,0.0001998,2]
[359096988,1745705590059,1000.0,0.00018894,2]
[359096989,1745705720831,3157.3723253,0.00018936,2]
[359096990,1745705805076,250.0,0.00017,2]
[359096991,1745705806259,300.0,0.00019,2]
[359096992,1745705903788,544.94042975,0.000369,60]
[359096993,1745705989262,734.0,0.00036986,60]
[359096994,1745706058615,216.83,0.00018818,2]
[359096995,1745706074173,423.5,0.00016905,2]
[359096996,1745706074372,423.5,0.00019169,2]
[359097001,1745706442866,272.76,0.00036986,60]
[359097004,1745706513645,150.0,0.00018783,7]
[359097032,1745706632013,-154.71,0.0001939,2]
[359097033,1745706632023,-200.0,0.000194,2]
[359097034,1745706632036,-348.0,0.0001941,2]
[359097035,1745706632047,-200.0,0.00019456,2]
[359097036,1745706632059,-247.79886488,0.00019499,2]
[359097037,1745706632087,-359.56063052,0.00019499,2]
[359097038,1745706632127,-568.72813446,0.00019499,2]
[359097039,1745706632139,-23.91237014,0.00019499,2]
[359097040,1745706632149,-4158.18822423,0.000195,2]
[359097041,1745706632162,-1746.83243514,0.000195,2]
[359097042,1745706632174,-386.88397494,0.000195,2]
[359097043,1745706632191,-491.06720059,0.000195,2]
[359097044,1745706632203,-506.57,0.000195,2]
[359097045,1745706632216,-110.77254626,0.000195,2]
[359097046,1745706632226,-300.0,0.0001967,2]
[359097047,1745706632236,-300.0,0.0001967,2]
[359097048,1745706632246,-1774.98426551,0.00019671,2]
[359097049,1745706632256,-178.26918911,0.00019679,2]
[359097050,1745706632266,-674.25302058,0.00019679,2]
[359097051,1745706632276,-5934.76689212,0.0001968,2]
[359097052,1745706632286,-2685.38876896,0.0001968,2]
[359097053,1745706632296,-2228.34431867,0.00019681,2]
[359097054,1745706632308,-10880.09859816,0.00019681,2]
[359097055,1745706632320,-4208.06358317,0.00019681,2]
[359097056,1745706632330,-4212.21858989,0.00019681,2]
[359097562,1745706637984,-187.11466007,0.000194,2]
[359097564,1745706637994,-1720.40197697,0.00019681,2]
[359097570,1745706638041,-1790.748096,0.00019681,2]
[359097577,1745706638102,-10304.46003714,0.00019681,2]
[359097579,1745706638112,-8429.9588,0.00019681,2]
[359097581,1745706638122,-674.25302057,0.00019704,2]
[359097583,1745706638131,-2685.38876888,0.00019704,2]
[359097585,1745706638141,-178.26918905,0.00019711,2]
[359097587,1745706638151,-674.25302057,0.00019728,2]
[359097589,1745706638161,-2685.38876888,0.00019729,2]
[359097591,1745706638170,-178.26918905,0.00019742,2]
[359097593,1745706638180,-674.25302057,0.00019753,2]
[359097596,1745706638190,-2685.38876888,0.00019753,2]
[359097598,1745706638200,-151.0,0.00019768,2]
[359097600,1745706638210,-207.4,0.00019768,2]
[359097601,1745706638220,-636.22,0.00019769,2]
[359097603,1745706638231,-500.0,0.00019773,2]
[359097606,1745706638240,-178.26918905,0.00019774,2]
[359097608,1745706638251,-2685.38876888,0.00019778,2]
[359097610,1745706638260,-400.0,0.00019778,2]
[359097612,1745706638270,-400.0,0.00019778,2]
[359097614,1745706638279,-400.0,0.00019778,2]
[359097616,1745706638289,-500.0,0.00019778,2]
[359097618,1745706638298,-400.0,0.00019778,2]
[359097620,1745706638308,-400.0,0.00019778,2]
[359097622,1745706638318,-400.0,0.00019778,2]
[359097624,1745706638328,-400.0,0.00019778,2]
[359097626,1745706638337,-400.0,0.00019778,2]
[359097628,1745706638346,-183.0777767,0.00019778,2]
[359097630,1745706638356,-500.0,0.00019778,2]
[359097632,1745706638365,-192.61845971,0.00019778,2]
[359097634,1745706638375,-206.70529025,0.00019778,2]
[359097636,1745706638384,-500.0,0.00019778,2]
[359097638,1745706638395,-500.0,0.00019778,2]
[359097640,1745706638404,-500.0,0.00019778,2]
[359097642,1745706638415,-160.21660937,0.00019778,2]
[359097644,1745706638424,-511.99031012,0.00019778,2]
[359097646,1745706638434,-505.87036558,0.00019778,2]
[359097648,1745706638443,-400.0,0.00019778,2]
[359097650,1745706638452,-400.0,0.00019778,2]
[359097652,1745706638462,-400.0,0.00019779,2]
[359097654,1745706638473,-513.88037635,0.00019779,2]
[359097656,1745706638482,-517.77229489,0.00019779,2]
[359097658,1745706638492,-536.65850559,0.00019779,2]
[359097660,1745706638501,-400.0,0.00019779,2]
[359097687,1745706638750,-400.0,0.00019779,2]
[359097690,1745706638774,-265.07858345,0.00019779,2]
[359097692,1745706638784,-400.0,0.00019779,2]
[359097694,1745706638794,-502.20725441,0.00019779,2]
[359097696,1745706638803,-400.0,0.00019779,2]
[359097698,1745706638812,-500.0,0.00019779,2]
[359097700,1745706638822,-544.12091407,0.00019779,2]
[359097702,1745706638831,-500.83206328,0.00019779,2]
[359097704,1745706638841,-501.17231651,0.00019779,2]
[359097706,1745706638851,-492.47,0.00019779,2]
[359097708,1745706638861,-500.0,0.00019779,2]
[359097710,1745706638870,-215.039,0.00019779,2]
[359097712,1745706638880,-400.0,0.00019779,2]
[359097714,1745706638889,-405.26708458,0.00019779,2]
[359097716,1745706638899,-400.0,0.00019779,2]
[359097718,1745706638912,-400.0,0.00019779,2]
[359097720,1745706638921,-400.0,0.00019779,2]
[359097722,1745706638931,-400.0,0.00019779,2]
[359097724,1745706638940,-500.0,0.00019779,2]
[359097726,1745706638950,-400.0,0.00019779,2]
[359097728,1745706638960,-400.0,0.00019779,2]
[359097730,1745706638970,-400.0,0.00019779,2]
[359097732,1745706638980,-500.0,0.00019779,2]
[359097734,1745706638990,-400.0,0.00019779,2]
[359097736,1745706639001,-1081.72,0.00019779,2]
[359097738,1745706639010,-500.0,0.00019779,2]
[359097740,1745706639020,-400.0,0.00019779,2]
[359097742,1745706639030,-433.04,0.00019779,2]
[359097744,1745706639040,-400.0,0.00019779,2]
[359097746,1745706639050,-400.0,0.00019779,2]
[359097748,1745706639060,-546.42,0.00019779,2]
[359097751,1745706639069,-451.31,0.00019779,2]
[359097752,1745706639079,-400.0,0.00019779,2]
[359097754,1745706639088,-503.48671736,0.00019779,2]
[359097757,1745706639102,-480.69,0.00019779,2]
[359097759,1745706639112,-435.17,0.00019779,2]
[359097761,1745706639122,-505.41,0.00019779,2]
[359097763,1745706639132,-488.65,0.00019779,2]
[359097765,1745706639141,-400.0,0.00019779,2]
[359097767,1745706639151,-400.0,0.00019779,2]
[359097769,1745706639161,-439.76,0.00019779,2]
[359097771,1745706639170,-400.0,0.00019779,2]
[359097773,1745706639180,-400.0,0.00019779,2]
[359097775,1745706639190,-308.83261399,0.00019779,2]
[359097777,1745706639199,-400.0,0.00019779,2]
[359097779,1745706639209,-524.21,0.00019779,2]
[359097781,1745706639219,-400.0,0.00019779,2]
[359097783,1745706639229,-400.0,0.00019779,2]
[359097785,1745706639238,-500.0,0.00019779,2]
[359097787,1745706639247,-590.08,0.00019779,2]
[359097789,1745706639258,-532.03936521,0.00019779,2]
[359097791,1745706639267,-400.0,0.00019779,2]
[359097793,1745706639277,-500.0,0.00019779,2]
[359097795,1745706639288,-400.0,0.00019779,2]
[359097797,1745706639297,-400.0,0.00019779,2]
[359097799,1745706639308,-400.0,0.00019779,2]
[359097801,1745706639317,-500.0,0.00019779,2]
[359097803,1745706639327,-431.49,0.00019779,2]
[359097805,1745706639336,-503.66766536,0.00019779,2]
[359097807,1745706639347,-400.0,0.00019779,2]
[359097809,1745706639356,-472.32,0.00019779,2]
[359097811,1745706639365,-500.0,0.00019779,2]
[359097813,1745706639374,-218.13582907,0.00019779,2]
[359097815,1745706639384,-400.0,0.00019779,2]
[359097817,1745706639393,-980.37,0.00019779,2]
[359097819,1745706639402,-400.0,0.00019779,2]
[359097821,1745706639411,-400.0,0.00019779,2]
[359097823,1745706639421,-400.0,0.00019779,2]
[359097825,1745706639430,-400.0,0.00019779,2]
[359097827,1745706639439,-400.0,0.00019779,2]
[359097829,1745706639448,-400.0,0.00019779,2]
[359097831,1745706639458,-400.0,0.00019779,2]
[359097833,1745706639467,-400.0,0.00019779,2]
[359097835,1745706639478,-858.42,0.00019779,2]
[359097837,1745706639487,-702.8,0.00019779,2]
[359097839,1745706639497,-400.0,0.00019779,2]
[359097841,1745706639506,-440.93,0.00019779,2]